bitfinex-derivatives/quotes_SOLF0:USTF0_20241231
["timestamp","ask_amount","ask_price","bid_price","bid_amount"]
[1735604847895,4.0915,190.92,190.87,2.6244]
[1735604849984,2.6239,190.91,190.87,2.6244]
[1735604850790,2.6241,190.9,190.86,11.05849587]
[1735604852524,2.6243,190.88,190.86,8.43399587]
[1735604853097,2.6251,190.82,190.79,2.6255]
[1735604853306,8.43399587,190.84,190.77,15.7085831]
[1735604853712,9.94749587,190.84,190.77,8.43399587]
[1735604854015,2.6253,190.81,190.77,8.43399587]
[1735604854205,9.94749587,190.84,190.77,8.43399587]
[1735604854706,2.6254,190.8,190.77,8.43399587]
[1735604855118,9.94749587,190.84,190.77,8.43399587]
[1735604855315,1.5135,190.84,190.79,8.43399587]
[1735604856502,1.5135,190.84,190.79,11.05939587]
[1735604857389,9.94749587,190.84,190.79,2.6254]
[1735604857593,2.625,190.83,190.79,2.6254]
[1735604857983,1.5487,190.87,190.81,8.43399587]
[1735604858403,11.49399587,190.9,190.86,2.6245]
[1735604858707,14.11799587,190.9,190.86,2.6245]
[1735604859018,11.49399587,190.9,190.83,8.43399587]
[1735604859701,11.49399587,190.9,190.84,2.6248]
[1735604860011,11.49399587,190.9,190.83,8.43399587]
[1735604860888,2.6246,190.86,190.83,8.43399587]
[1735604861886,1.4602,190.93,190.73,3.06]
[1735604861887,8.43399587,190.84,190.73,3.06]
[1735604862093,11.49399587,190.84,190.76,8.43399587]
[1735604862300,8.43399587,190.82,190.72,13.34098723]
[1735604862585,2.6256,190.79,190.75,11.05999587]
[1735604862891,11.49399587,190.84,190.77,8.43399587]
[1735604863393,8.43399587,190.82,190.75,8.43399587]
[1735604864592,2.6255,190.8,190.75,8.43399587]
[1735604865291,2.6255,190.8,190.75,11.05999587]
[1735604866088,8.43399587,190.82,190.75,8.43399587]
[1735604866295,11.49399587,190.84,190.77,8.43399587]
[1735604866894,1.4596,190.85,190.79,8.43399587]
[1735604867289,4.0843,190.85,190.81,2.6252]
[1735604868294,1.4596,190.85,190.81,2.6252]
[1735604868492,2.6248,190.84,190.81,2.6252]
[1735604876002,8.43399587,190.83,190.76,8.43399587]
[1735604876901,2.6254,190.8,190.76,8.43399587]
[1735604878407,2.6254,190.8,190.77,2.6257]
[1735604879102,2.6253,190.81,190.77,2.6257]
[1735604879306,2.6253,190.81,190.78,2.6256]
[1735604879706,1.4596,190.85,190.78,8.43399587]
[1735604879899,1.4596,190.85,190.82,2.625]
[1735604880503,1.4596,190.85,190.8,8.43399587]
[1735604880504,4.0843,190.85,190.81,2.6252]
[1735604882003,2.6248,190.84,190.81,2.6252]
[1735604883808,2.6248,190.84,190.8,8.43399587]
[1735604884108,9.89359587,190.85,190.78,8.43399587]
[1735604884308,2.6252,190.82,190.78,8.43399587]
[1735604884507,2.6252,190.82,190.78,11.05949587]
[1735604885212,2.6252,190.82,190.78,2.6255]
[1735604885807,8.43399587,190.83,190.77,2.6257]
[1735604886517,2.6254,190.8,190.76,11.05989587]
[1735604887216,2.6255,190.79,190.76,11.05989587]
[1735604887518,2.6255,190.79,190.75,2.626]
[1735604887716,8.43399587,190.81,190.75,2.626]
[1735604888014,2.6257,190.78,190.75,2.626]
[1735604888406,3.06,190.82,190.75,2.626]
[1735604888604,3.06,190.82,190.76,8.43399587]
[1735604888806,3.06,190.82,190.78,8.43399587]
[1735604890114,2.6253,190.81,190.78,8.43399587]
[1735604890417,2.6253,190.81,190.77,2.6257]
[1735604891116,2.6255,190.79,190.76,8.43399587]
[1735604891911,2.6253,190.81,190.76,8.43399587]
[1735604892121,9.89359587,190.85,190.78,8.43399587]
[1735604892519,1.4596,190.85,190.8,8.43399587]
[1735604893117,3.06,190.86,190.8,8.43399587]
[1735604893321,2.6249,190.84,190.8,8.43399587]
[1735604893824,2.6245,190.87,190.82,11.05909587]
[1735604894025,3.06,190.88,190.82,11.05909587]
[1735604894426,8.43399587,190.85,190.76,3.06]
[1735604894625,8.43399587,190.85,190.78,8.43399587]
[1735604894829,8.43399587,190.83,190.76,3.06]
[1735604895117,11.49399587,190.83,190.76,8.43399587]
[1735604895919,2.6256,190.79,190.76,8.43399587]
[1735604896118,8.43399587,190.81,190.74,8.43399587]
[1735604896926,2.6256,190.79,190.74,11.06009587]
[1735604897619,8.43399587,190.81,190.74,11.06009587]
[1735604897822,2.6256,190.78,190.74,11.06009587]
[1735604898725,2.6258,190.77,190.74,8.43399587]
[1735604900027,2.6256,190.79,190.75,2.626]
[1735604900529,2.6258,190.77,190.74,8.43399587]
[1735604900726,7.4681103,190.87,190.76,8.43399587]
[1735604900930,1.4953,190.87,190.8,8.43399587]
[1735604903830,2.6247,190.85,190.8,8.43399587]
[1735604904031,3.9381557,190.89,190.84,8.43399587]
[1735604904331,88.94077834,190.97,190.87,8.43399587]
[1735604904539,88.94077834,190.97,190.92,8.43399587]
[1735604904834,88.94077834,190.97,190.92,11.49399587]
[1735604905036,1.5455,190.97,190.92,11.49399587]
[1735604905235,2.6232,190.96,190.92,11.49399587]
[1735604905431,1.5455,190.97,190.92,11.49399587]
[1735604905827,2.6233,190.95,190.92,11.49399587]
[1735604906333,2.6233,190.95,190.92,3.06]
[1735604909835,2.6233,190.95,190.9,2.624]
[1735604910140,2.6239,190.91,190.9,3.06]
[1735604911238,2.6237,190.92,190.9,3.06]
[1735604912142,2.6236,190.93,190.9,3.06]
[1735604912433,1.5455,190.97,190.9,5.6839]
[1735604912838,1.5455,190.97,190.9,3.06]
[1735604913040,1.5455,190.97,190.93,2.6236]
[1735604913741,4.1686,190.97,190.92,2.6237]
[1735604914239,1.5455,190.97,190.92,2.6237]
[1735604914439,2.6235,190.94,190.89,2.6241]
[1735604914635,1.5455,190.97,190.89,2.6241]
[1735604914844,1.5455,190.97,190.9,3.06]
[1735604915438,2.6236,190.93,190.9,3.06]
[1735604916246,2.6238,190.91,190.88,13.19287432]
[1735604916442,2.6238,190.91,190.88,16.25287432]
[1735604916742,2.6238,190.91,190.88,3.06]
[1735604916944,2.6238,190.91,190.87,2.6243]
[1735604917145,2.6238,190.91,190.87,5.6843]
[1735604917642,2.6238,190.91,190.87,2.6243]
[1735604920040,2.6238,190.91,190.86,3.06]
[1735604920246,2.6238,190.91,190.88,2.6242]
[1735604920447,2.6235,190.94,190.86,3.06]
[1735604920645,1.5455,190.97,190.86,3.06]
[1735604920846,1.5455,190.97,190.89,2.624]
[1735604921543,2.6233,190.95,190.89,2.624]
[1735604921748,1.5455,190.97,190.89,2.624]
[1735604922148,2.6235,190.94,190.89,2.624]
[1735604922942,1.5455,190.97,190.86,3.06]
[1735604923246,2.6233,190.96,190.91,2.6237]
[1735604923448,1.5455,190.97,190.91,2.6237]
[1735604923848,2.6234,190.95,190.91,5.6837]
[1735604924846,1.5455,190.97,190.92,2.6236]
[1735604925545,2.6233,190.95,190.91,5.6838]
[1735604927250,1.5455,190.97,190.91,2.6238]
[1735604927476,2.6234,190.94,190.91,3.06]
[1735604927874,1.5455,190.97,190.91,3.06]
[1735604928071,2.6232,190.96,190.91,3.06]
[1735604928277,1.5455,190.97,190.91,11.50370915]
[1735604928974,2.6233,190.96,190.91,14.12750915]
[1735604929174,1.5455,190.97,190.91,14.12750915]
[1735604930075,2.6235,190.94,190.91,8.44370915]
[1735604933380,2.6235,190.94,190.91,11.06750915]
[1735604935383,1.5455,190.97,190.91,8.44370915]
[1735604935584,4.1685,190.97,190.93,11.06710915]
[1735604935988,1.5455,190.97,190.93,11.06710915]
[1735604936582,1.5455,190.97,190.93,8.44370915]
[1735604938870,1.5393,190.99,190.93,8.44370915]
[1735604939072,1.4982,191.02,190.93,8.44370915]
[1735604939271,1.4982,191.02,190.97,8.44370915]
[1735604939460,1.4982,191.02,190.97,11.50370915]
[1735604942162,1.4982,191.02,190.97,3.06]
[1735604944258,1.4982,191.02,190.97,11.50370915]
[1735604948657,1.5958,191.08,191.01,8.44370915]
[1735604948960,1.5958,191.08,191.03,8.44370915]
[1735604949260,1.5958,191.08,191.03,11.50370915]
[1735604950462,8.44370915,191.05,190.97,3.06]
[1735604950666,8.44370915,191.05,190.97,11.50370915]
[1735604954267,8.44370915,191.05,190.97,8.44370915]
[1735604954469,8.44370915,191.05,190.99,8.44370915]
[1735604955369,10.03950915,191.08,191.01,8.44370915]
[1735604957563,10.03950915,191.08,190.98,3.06]
[1735604957564,1.5958,191.08,191.03,8.44370915]
[1735604957769,1.5958,191.08,191.03,11.50370915]
[1735604958169,1.5958,191.08,191.03,8.44370915]
[1735604958473,10.03950915,191.08,191.01,8.44370915]
[1735604961176,1.5958,191.08,191.03,8.44370915]
[1735604961970,8.44370915,191.1,191.03,8.44370915]
[1735604962175,1.5139,191.11,191.05,8.44370915]
[1735604962577,1.4926,191.13,191.07,8.44370915]
[1735604965282,9.93630915,191.13,191.07,8.44370915]
[1735604967277,1.4926,191.13,191.07,8.44370915]
[1735604967783,1.4926,191.13,191.09,8.44370915]
[1735604968077,1.4573,191.17,191.11,8.44370915]
[1735604968290,9.66662474,191.22,191.13,8.44370915]
[1735604968291,8.44370915,191.2,191.13,8.44370915]
[1735604968880,8.44370915,191.22,191.15,8.44370915]
[1735604969181,8.44370915,191.18,191.11,8.44370915]
[1735604970580,8.44370915,191.2,191.13,8.44370915]
[1735604970780,7.6523,191.25,191.13,8.44370915]
[1735604970781,3.06,191.24,191.13,8.44370915]
[1735604970986,8.44370915,191.21,191.13,8.44370915]
[1735604974787,8.44370915,191.21,191.14,3.06]
[1735604976587,8.44370915,191.21,191.15,8.44370915]
[1735604976790,8.44370915,191.23,191.17,8.44370915]
[1735604977891,13.03600915,191.25,191.19,8.44370915]
[1735604978393,1.5219,191.25,191.21,8.44370915]
[1735604978689,1.5219,191.25,191.19,11.50370915]
[1735604981792,1.5219,191.25,191.19,8.44370915]
[1735604981994,45.91005712,191.3,191.21,8.44370915]
[1735604982200,55.82096627,191.3,191.21,8.44370915]
[1735604982384,55.82096627,191.3,191.23,8.44370915]
[1735604983088,1.4672,191.3,191.25,8.44370915]
[1735604984889,8.44370915,191.32,191.25,11.50370915]
[1735604987799,8.44370915,191.3,191.23,3.06]
[1735604988001,8.44370915,191.3,191.23,11.50370915]
[1735604988295,8.44370915,191.3,191.22,11.50370915]
[1735604989498,1.4891,191.31,191.26,8.44370915]
[1735604990093,8.44370915,191.33,191.26,8.44370915]
[1735604990297,1.4891,191.37,191.3,8.44370915]
[1735604990497,8.44370915,191.37,191.3,8.44370915]
[1735604996099,8.44370915,191.33,191.26,8.44370915]
[1735604996298,8.44370915,191.33,191.25,11.50370915]
[1735604996701,8.44370915,191.33,191.25,8.44370915]
[1735604997200,8.44370915,191.35,191.27,8.44370915]
[1735604998900,8.44370915,191.35,191.29,8.44370915]
[1735604999099,8.44370915,191.37,191.29,11.50370915]
[1735605000202,8.44370915,191.37,191.31,8.44370915]
[1735605000896,1.4891,191.38,191.33,8.44370915]
[1735605004907,8.44370915,191.4,191.33,8.44370915]
[1735605006408,8.44370915,191.4,191.33,11.50370915]
[1735605006701,45.88318392,191.41,191.35,8.44370915]
[1735605006901,45.88318392,191.41,191.37,8.44370915]
[1735605007407,45.88318392,191.41,191.33,3.06]
[1735605007408,8.44370915,191.4,191.33,8.44370915]
[1735605009409,8.44370915,191.38,191.31,8.44370915]
[1735605010208,8.44370915,191.38,191.3,3.06]
[1735605010409,8.44370915,191.38,191.31,8.44370915]
[1735605011206,8.44370915,191.38,191.29,3.06]
[1735605011500,8.44370915,191.38,191.32,8.44370915]
[1735605011911,45.88318392,191.41,191.34,8.44370915]
[1735605012309,45.88318392,191.41,191.36,8.44370915]
[1735605012610,4.6589,191.43,191.36,8.44370915]
[1735605014607,8.44370915,191.42,191.36,8.44370915]
[1735605017908,8.44370915,191.38,191.32,8.44370915]
[1735605019219,8.44370915,191.36,191.28,11.48370915]
[1735605019415,8.44370915,191.34,191.28,11.48370915]
[1735605021420,8.44370915,191.34,191.28,8.44370915]
[1735605023815,8.44370915,191.32,191.26,8.44370915]
[1735605024211,8.44370915,191.32,191.25,8.44370915]
[1735605026116,8.44370915,191.32,191.27,8.44370915]
[1735605026317,11.49480915,191.34,191.27,8.44370915]
[1735605029119,8.44370915,191.32,191.25,8.44370915]
[1735605030119,8.44370915,191.3,191.25,8.44370915]
[1735605030322,8.44370915,191.28,191.23,8.44370915]
[1735605030621,8.44370915,191.28,191.21,8.44370915]
[1735605031326,8.44370915,191.26,191.19,8.44370915]
[1735605032420,1.5722,191.27,191.19,8.44370915]
[1735605032421,8.44370915,191.24,191.19,8.44370915]
[1735605033733,8.44370915,191.24,191.15,4.60318031]
[1735605033923,8.44370915,191.24,191.18,8.44370915]
[1735605035324,8.44370915,191.24,191.16,8.44370915]
[1735605035622,8.44370915,191.22,191.16,8.44370915]
[1735605042247,8.44370915,191.2,191.14,8.44370915]
[1735605043839,8.44370915,191.22,191.14,8.44370915]
[1735605044430,8.44370915,191.2,191.14,8.44370915]
[1735605044827,11.50370915,191.2,191.14,8.44370915]
[1735605048131,3.06,191.2,191.14,8.44370915]
[1735605048329,3.1432,191.26,191.18,8.44370915]
[1735605048636,1.5598,191.26,191.2,8.44370915]
[1735605048837,1.5722,191.27,191.22,8.44370915]
[1735605049334,8.44370915,191.28,191.22,8.44370915]
[1735605052835,8.44370915,191.24,191.09,7.23753156]
[1735605053136,8.44370915,191.2,191.14,8.44370915]
[1735605054427,3.06,191.22,191.11,13.1624417]
[1735605060039,13.1624417,191.2,191.1,1.4724]
[1735605060233,13.1624417,191.2,191.08,14.6300417]
[1735605063940,13.1624417,191.17,191.05,14.7074417]
[1735605064139,4.5385,191.16,191.05,13.1624417]
[1735605064442,13.1624417,191.09,191.03,28.95012626]
[1735605064631,4.5484,191.08,191.03,28.95012626]
[1735605064831,6.1216,191.08,191.02,28.95012626]
[1735605065333,13.1624417,191.06,191.02,28.95012626]
[1735605066037,13.1624417,191.06,190.93,16.1034417]
[1735605066238,13.1624417,191.06,190.9,7.23753156]
[1735605066443,13.1624417,191.03,190.91,13.1624417]
[1735605066636,3.06,191.02,190.91,13.1624417]
[1735605071249,13.1624417,191.06,190.94,13.1624417]
[1735605071443,3.06,191.05,190.94,13.1624417]
[1735605072251,1.4884,191.08,190.97,13.1624417]
[1735605072452,3.06,191.07,190.97,13.1624417]
[1735605072647,3.06,191.07,190.98,3.0729]
[1735605074455,1.4884,191.08,190.98,3.0729]
[1735605074652,3.06,191.06,190.98,3.0729]
[1735605075451,16.2224417,191.06,190.94,13.1624417]
[1735605075748,13.1624417,191.0,190.92,1.5178]
[1735605075958,3.06,190.99,190.9,1.53]
[1735605076452,2.6231,190.97,190.91,2.6237]
[1735605076653,3.06,190.99,190.91,2.6237]
[1735605077353,13.1624417,190.97,190.9,4.1539]
[1735605077555,13.1624417,190.97,190.9,2.6239]
[1735605078155,13.1624417,190.97,190.87,1.5178]
[1735605078458,13.1624417,190.94,190.82,13.1624417]
[1735605078658,3.06,190.93,190.82,14.7248417]
[1735605079353,2.6237,190.92,190.87,2.6243]
[1735605080655,3.06,190.95,190.85,13.1624417]
[1735605081864,2.6235,190.94,190.89,2.624]
[1735605082050,13.1624417,190.97,190.85,13.1624417]
[1735605082354,3.06,190.94,190.85,13.1624417]
[1735605082556,5.6834,190.94,190.89,2.624]
[1735605083757,3.06,190.94,190.89,2.624]
[1735605083978,2.6239,190.91,190.86,2.6243]
[1735605084264,16.2224417,190.94,190.82,1.5624]
[1735605084455,2.6245,190.87,190.83,2.6249]
[1735605084760,16.2224417,190.88,190.76,13.1624417]
[1735605085061,13.1624417,190.85,190.74,3.0602]
[1735605085564,2.6255,190.79,190.74,5.6862]
[1735605085761,3.06,190.8,190.74,3.0602]
[1735605086664,5.6853,190.8,190.75,2.6259]
[1735605089359,3.06,190.8,190.74,3.0602]
[1735605089566,13.1624417,190.85,190.74,3.0602]
[1735605089774,3.06,190.84,190.74,3.0602]
[1735605089966,2.6253,190.81,190.76,2.6258]
[1735605090168,2.6253,190.81,190.72,13.1624417]
[1735605090965,2.6253,190.81,190.75,2.6259]
[1735605091170,3.06,190.84,190.72,13.1624417]
[1735605091368,13.1624417,190.82,190.69,16.2938417]
[1735605091771,2.6252,190.8,190.69,16.2938417]
[1735605091967,3.06,190.79,190.72,2.6262]
[1735605092170,3.06,190.79,190.69,16.2938417]
[1735605093172,2.625,190.82,190.72,13.1624417]
[1735605093371,3.06,190.82,190.72,13.1624417]
[1735605093779,13.1624417,190.86,190.75,13.1624417]
[1735605093979,13.1624417,190.89,190.75,13.1624417]
[1735605094178,3.06,190.88,190.78,2.6253]
[1735605094380,3.06,190.88,190.75,13.1624417]
[1735605094783,13.1624417,190.89,190.75,13.1624417]
[1735605094982,3.06,190.88,190.75,13.1624417]
[1735605095183,2.6246,190.85,190.75,13.1624417]
[1735605095380,3.06,190.88,190.72,13.1624417]
[1735605095584,13.1624417,190.86,190.72,13.1624417]
[1735605095781,2.6251,190.81,190.76,2.6257]
[1735605096084,3.06,190.83,190.72,13.1624417]
[1735605096383,16.2224417,190.83,190.72,13.1624417]
[1735605096779,16.2224417,190.83,190.76,2.6256]
[1735605096986,16.2224417,190.83,190.72,13.1624417]
[1735605097277,2.6251,190.81,190.76,2.6256]
[1735605098785,16.2224417,190.83,190.75,2.6258]
[1735605098979,3.06,190.83,190.69,3.1314]
[1735605099188,13.1624417,190.8,190.69,3.1314]
[1735605099883,2.6256,190.77,190.71,2.6264]
[1735605100181,3.06,190.77,190.71,2.6264]
[1735605100386,2.6258,190.76,190.71,2.6264]
[1735605100680,2.6258,190.76,190.72,2.6262]
[1735605101287,2.6259,190.75,190.71,2.6264]
[1735605102183,3.06,190.77,190.71,2.6264]
[1735605102584,16.2224417,190.77,190.69,7.23753156]
[1735605102989,2.6262,190.73,190.68,31.57692626]
[1735605103290,16.2224417,190.77,190.68,31.57692626]
[1735605103486,2.6259,190.75,190.68,31.57692626]
[1735605103691,16.2224417,190.77,190.68,28.95012626]
[1735605103991,16.2224417,190.77,190.7,2.6264]
[1735605104687,2.6259,190.75,190.7,2.6264]
[1735605105092,2.6259,190.75,190.71,2.6264]
[1735605105093,5.7059,190.75,190.71,2.6264]
[1735605105284,2.6261,190.74,190.67,13.1624417]
[1735605105589,2.6261,190.74,190.7,2.6264]
[1735605105785,3.08,190.75,190.67,13.1624417]
[1735605105986,3.08,190.77,190.67,13.1624417]
[1735605106486,5.7057,190.77,190.67,13.1624417]
[1735605106691,5.7057,190.77,190.72,2.6262]
[1735605107591,2.6257,190.76,190.72,2.6262]
[1735605107788,1.4918,190.79,190.68,45.69160774]
[1735605107991,1.4918,190.79,190.75,2.6257]
[1735605107992,4.5718,190.79,190.75,2.6257]
[1735605108489,2.6253,190.8,190.7,20.39997326]
[1735605108695,3.08,190.8,190.7,20.39997326]
[1735605108892,3.08,190.8,190.7,21.88937326]
[1735605109088,16.2424417,190.8,190.73,2.6261]
[1735605109289,16.2424417,190.8,190.7,8.72693156]
[1735605109492,16.2424417,190.8,190.7,7.23753156]
[1735605110293,16.2424417,190.8,190.71,2.6264]
[1735605110889,2.6256,190.77,190.71,2.6264]
[1735605111395,2.6256,190.77,190.72,2.6262]
[1735605113498,2.6256,190.77,190.73,2.6261]
[1735605114698,16.2424417,190.8,190.73,2.6261]
[1735605114897,2.6256,190.77,190.73,2.6261]
[1735605115404,16.2424417,190.8,190.69,28.95012626]
[1735605115596,2.6255,190.78,190.74,2.6259]
[1735605117204,16.2424417,190.8,190.7,7.23753156]
[1735605117802,16.2424417,190.8,190.72,28.95012626]
[1735605118404,2.6255,190.78,190.74,2.6259]
[1735605118606,5.7055,190.78,190.74,2.6259]
[1735605120200,5.7055,190.78,190.74,9.86343156]
[1735605122092,5.7051,190.81,190.74,7.23753156]
[1735605122296,3.08,190.81,190.74,7.23753156]
[1735605122900,3.08,190.81,190.76,2.6257]
[1735605124203,2.6252,190.8,190.76,2.6257]
[1735605128310,8.45909806,190.79,190.76,2.6257]
[1735605129002,2.6255,190.78,190.74,2.6259]
[1735605129202,8.45909806,190.77,190.7,15.69662962]
[1735605129911,2.6258,190.76,190.72,2.6263]
[1735605130407,8.45909806,190.74,190.68,7.23753156]
[1735605130811,11.53909806,190.76,190.69,8.45909806]
[1735605131112,14.16479806,190.76,190.73,2.6261]
[1735605134214,3.1,190.77,190.74,2.6259]
[1735605134416,11.55909806,190.78,190.74,2.6259]
[1735605134910,2.6257,190.77,190.74,2.6259]
[1735605136114,2.6257,190.77,190.73,2.6261]
[1735605136313,2.6258,190.76,190.73,2.6261]
[1735605137313,2.626,190.75,190.71,2.6263]
[1735605137616,8.45909806,190.74,190.68,28.95012626]
[1735605138115,2.6266,190.7,190.67,37.40922432]
[1735605138311,8.45909806,190.74,190.67,37.40922432]
[1735605138618,2.6262,190.73,190.67,37.40922432]
[1735605139008,2.6266,190.7,190.67,40.03612432]
[1735605139210,8.45909806,190.72,190.65,8.45909806]
[1735605139508,8.45909806,190.72,190.64,7.23753156]
[1735605139711,2.6269,190.68,190.64,18.32392962]
[1735605140411,2.6269,190.68,190.66,7.23753156]
[1735605141719,2.6267,190.69,190.65,2.6272]
[1735605142520,2.6268,190.68,190.65,2.6272]
[1735605143015,2.6267,190.69,190.65,2.6272]
[1735605143913,11.55909806,190.76,190.68,8.45909806]
[1735605144118,11.55909806,190.76,190.7,8.45909806]
[1735605144815,1.5923,190.77,190.72,8.45909806]
[1735605145020,8.45909806,190.8,190.74,8.45909806]
[1735605145221,11.08429806,190.8,190.74,8.45909806]
[1735605145819,0.19193,190.78,190.74,8.45909806]
[1735605146215,0.19193,190.78,190.72,7.23753156]
[1735605146719,0.19193,190.78,190.75,2.6257]
[1735605146917,0.19193,190.78,190.71,13.21596387]
[1735605147819,0.19193,190.78,190.76,2.6256]
[1735605148120,0.19193,190.78,190.71,13.21596387]
[1735605148319,0.19193,190.78,190.74,13.21596387]
[1735605148522,0.19193,190.78,190.77,2.6256]
[1735605150424,0.19193,190.78,190.75,2.6257]
[1735605150625,0.19193,190.78,190.74,16.31596387]
[1735605152230,0.19193,190.78,190.77,2.6256]
[1735605153328,0.19193,190.78,190.77,15.84156387]
[1735605154521,0.19193,190.78,190.77,2.6256]
[1735605156628,3.1,190.84,190.81,2.625]
[1735605157022,5.7247,190.84,190.77,13.21596387]
[1735605157325,5.7247,190.84,190.79,2.6252]
[1735605157827,2.6249,190.82,190.78,2.6254]
[1735605158831,2.6248,190.83,190.79,2.6253]
[1735605159232,2.6248,190.83,190.77,13.21596387]
[1735605159233,3.1,190.84,190.77,13.21596387]
[1735605159425,3.1,190.84,190.74,3.1]
[1735605159632,3.1,190.84,190.73,13.21596387]
[1735605160132,13.21596387,190.83,190.73,13.21596387]
[1735605160323,14.69646387,190.83,190.7,23.55349543]
[1735605160525,1.5129,190.82,190.73,2.626]
[1735605160729,1.5129,190.82,190.7,16.31596387]
[1735605161331,2.6253,190.79,190.74,2.6258]
[1735605161533,1.5129,190.82,190.7,16.31596387]
[1735605161731,1.5129,190.82,190.73,13.21596387]
[1735605161926,2.6247,190.83,190.76,2.6256]
[1735605162126,2.6247,190.83,190.73,13.21596387]
[1735605162425,4.6892,190.85,190.76,13.21596387]
[1735605163230,7.3136,190.85,190.78,2.6253]
[1735605163435,7.3136,190.85,190.76,13.21596387]
[1735605163736,4.2336,190.85,190.76,13.21596387]
[1735605163930,4.2336,190.85,190.78,2.6253]
[1735605164135,4.2336,190.85,190.76,13.21596387]
[1735605164532,4.2336,190.85,190.81,2.6249]
[1735605165445,1.6092,190.85,190.76,13.21596387]
[1735605165651,2.6246,190.84,190.8,2.6251]
[1735605166539,2.6246,190.84,190.81,2.6249]
[1735605166750,4.2336,190.85,190.81,2.6249]
[1735605167950,2.6246,190.84,190.76,13.21596387]
[1735605168249,2.6246,190.84,190.79,8.45350157]
[1735605169050,2.6246,190.84,190.81,2.6249]
[1735605169249,2.6246,190.84,190.79,8.45350157]
[1735605169552,2.6248,190.83,190.79,11.07870157]
[1735605169847,2.6248,190.83,190.79,2.6252]
[1735605170447,2.6248,190.82,190.78,2.6253]
[1735605170648,8.45350157,190.84,190.77,8.45350157]
[1735605171051,8.45350157,190.84,190.79,2.6252]
[1735605171052,2.6247,190.83,190.79,2.6252]
[1735605171251,8.45350157,190.84,190.79,2.6252]
[1735605171845,2.6247,190.83,190.79,2.6252]
[1735605172241,11.07840157,190.82,190.77,8.45350157]
[1735605172440,8.45350157,190.82,190.77,8.45350157]
[1735605172852,2.625,190.81,190.77,11.07890157]
[1735605173452,2.6248,190.83,190.77,8.45350157]
[1735605173653,2.6248,190.83,190.79,8.45350157]
[1735605174850,2.6248,190.82,190.78,2.6252]
[1735605175048,11.57310157,190.84,190.78,2.6252]
[1735605175556,2.6248,190.83,190.78,2.6252]
[1735605175751,11.57310157,190.84,190.78,2.6252]
[1735605176553,2.6249,190.82,190.78,2.6252]
[1735605176959,2.6249,190.82,190.79,2.6252]
[1735605178157,11.57310157,190.84,190.77,8.45350157]
[1735605178860,2.625,190.81,190.77,11.07890157]
[1735605180466,2.6251,190.8,190.77,2.6254]
[1735605180966,8.45350157,190.82,190.77,2.6254]
[1735605181955,2.625,190.81,190.77,2.6254]
[1735605182160,2.625,190.81,190.77,11.07890157]
[1735605183155,11.57310157,190.84,190.77,11.07890157]
[1735605183355,11.57310157,190.84,190.77,8.45350157]
[1735605183661,8.45350157,190.82,190.74,8.45350157]
[1735605183867,2.6256,190.77,190.74,8.45350157]
[1735605184267,8.45350157,190.78,190.72,45.82128089]
[1735605184460,2.626,190.74,190.72,45.82128089]
[1735605184966,2.626,190.74,190.71,2.6263]
[1735605185170,2.6258,190.75,190.71,2.6263]
[1735605185463,1.5088,190.77,190.71,2.6263]
[1735605185663,4.5888,190.77,190.71,2.6263]
[1735605185866,8.45350157,190.76,190.7,8.45350157]
[1735605186064,8.45350157,190.74,190.68,8.45350157]
[1735605186271,8.45350157,190.72,190.66,37.40362783]
[1735605187268,11.53350157,190.72,190.66,8.45350157]
[1735605187465,8.45350157,190.7,190.64,8.45350157]
[1735605187659,1.5432,190.69,190.64,8.45350157]
[1735605188269,2.6268,190.68,190.64,11.08080157]
[1735605188773,3.0175,190.77,190.66,8.45350157]
[1735605188964,11.53350157,190.75,190.69,8.45350157]
[1735605189365,8.45350157,190.73,190.67,8.45350157]
[1735605190870,8.45350157,190.71,190.61,1.4965]
[1735605191064,8.45350157,190.71,190.64,8.45350157]
[1735605191660,2.6266,190.69,190.65,2.6271]
[1735605192466,2.6267,190.68,190.64,11.08080157]
[1735605193070,2.6266,190.69,190.65,2.6271]
[1735605193976,8.45350157,190.71,190.66,8.45350157]
[1735605194772,1.5432,190.76,190.66,8.45350157]